[Event "*** Titled Tuesday Blitz"]
[Site "Chess.com"]
[Date "2020.05.05"]
[Round "1"]
[White "Gloomy_Wanderer"]
[Black "MFguimaraes"]
[Result "1-0"]
[WhiteElo "2785"]
[BlackElo "2406"]
[TimeControl "180+1"]
[EndTime "10:08:36 PDT"]
[Termination "Gloomy_Wanderer won by resignation"]

1. d4 {[%clk 0:03:00.9]} 1... Nf6 {[%clk 0:02:59.3]} 2. Nf3 {[%clk 0:03:00.2]}
2... d5 {[%clk 0:02:59.4]} 3. c4 {[%clk 0:03:00.6]} 3... c6 {[%clk 0:02:59.4]}
4. Qc2 {[%clk 0:02:59.2]} 4... dxc4 {[%clk 0:02:54.9]} 5. Qxc4 {[%clk
0:03:00.1]} 5... Bf5 {[%clk 0:02:54.9]} 6. g3 {[%clk 0:03:00.1]} 6... e6 {[%clk
0:02:54.7]} 7. Bg2 {[%clk 0:03:00.2]} 7... Nbd7 {[%clk 0:02:54.6]} 8. O-O {[%clk
0:03:00.2]} 8... Be7 {[%clk 0:02:54.7]} 9. Qb3 {[%clk 0:03:00.5]} 9... Qb6
{[%clk 0:02:51.6]} 10. Nbd2 {[%clk 0:03:00.8]} 10... O-O {[%clk 0:02:50.4]} 11.
Nc4 {[%clk 0:03:00.6]} 11... Qxb3 {[%clk 0:02:49.1]} 12. axb3 {[%clk 0:03:01.5]}
12... Be4 {[%clk 0:02:46.7]} 13. Bf4 {[%clk 0:03:01.3]} 13... Nd5 {[%clk
0:02:40]} 14. Bd6 {[%clk 0:02:59.5]} 14... Rfe8 {[%clk 0:02:26.5]} 15. Rfc1
{[%clk 0:02:55.2]} 15... N7b6 {[%clk 0:02:24.3]} 16. Bxe7 {[%clk 0:02:52.6]}
16... Rxe7 {[%clk 0:02:22.6]} 17. Nd6 {[%clk 0:02:49.4]} 17... Bg6 {[%clk
0:02:21.9]} 18. Ne5 {[%clk 0:02:47]} 18... Rd8 {[%clk 0:02:14.5]} 19. Ndc4
{[%clk 0:02:35.8]} 19... a6 {[%clk 0:02:07.5]} 20. e3 {[%clk 0:02:25]} 20... Nd7
{[%clk 0:01:59.8]} 21. Nf3 {[%clk 0:01:40.7]} 21... Nb4 {[%clk 0:01:52.5]} 22.
Na5 {[%clk 0:01:37.6]} 22... Nb6 {[%clk 0:01:39.2]} 23. Ne5 {[%clk 0:01:36.5]}
23... f6 {[%clk 0:01:33.6]} 24. Nec4 {[%clk 0:01:32.9]} 24... Nxc4 {[%clk
0:01:28.8]} 25. bxc4 {[%clk 0:01:27.8]} 25... Nd3 {[%clk 0:01:28.7]} 26. Rd1
{[%clk 0:01:00.3]} 26... Nb4 {[%clk 0:01:16]} 27. Rac1 {[%clk 0:00:57.4]} 27...
Red7 {[%clk 0:01:11.3]} 28. Bh3 {[%clk 0:00:52.2]} 28... Kf7 {[%clk 0:01:02.2]}
29. Nb3 {[%clk 0:00:51.5]} 29... b6 {[%clk 0:00:57.3]} 30. c5 {[%clk 0:00:50.4]}
30... b5 {[%clk 0:00:53.4]} 31. Na5 {[%clk 0:00:50.1]} 31... Be4 {[%clk
0:00:50.9]} 32. Rd2 {[%clk 0:00:48.7]} 32... h5 {[%clk 0:00:46.8]} 33. Kf1
{[%clk 0:00:47.8]} 33... g5 {[%clk 0:00:46.3]} 34. Ke2 {[%clk 0:00:47.2]} 34...
g4 {[%clk 0:00:46.4]} 35. Bf1 {[%clk 0:00:46.8]} 35... Bf3+ {[%clk 0:00:46.6]}
36. Ke1 {[%clk 0:00:47.2]} 36... e5 {[%clk 0:00:42.2]} 37. Nb3 {[%clk
0:00:45.7]} 37... Bd5 {[%clk 0:00:40.1]} 38. Na5 {[%clk 0:00:40.9]} 38... Bf3
{[%clk 0:00:39.6]} 39. Nb3 {[%clk 0:00:40.8]} 39... Bd5 {[%clk 0:00:39.7]} 40.
Rc3 {[%clk 0:00:34.4]} 40... Na2 {[%clk 0:00:35.8]} 41. Na5 {[%clk 0:00:34.7]}
41... Nxc3 {[%clk 0:00:34.8]} 42. bxc3 {[%clk 0:00:35.6]} 42... exd4 {[%clk
0:00:26.5]} 43. cxd4 {[%clk 0:00:35.7]} 43... Bf3 {[%clk 0:00:20.6]} 44. Be2
{[%clk 0:00:32.6]} 44... Rc7 {[%clk 0:00:20.6]} 45. h4 {[%clk 0:00:22.7]} 45...
f5 {[%clk 0:00:20.4]} 46. Bd3 {[%clk 0:00:22.4]} 46... Be4 {[%clk 0:00:19.8]}
47. Kd1 {[%clk 0:00:22.4]} 47... Bxd3 {[%clk 0:00:19.3]} 48. Rxd3 {[%clk
0:00:23.2]} 48... Ke6 {[%clk 0:00:19.7]} 49. Ke2 {[%clk 0:00:22.4]} 49... Kd5
{[%clk 0:00:19.9]} 50. Rb3 {[%clk 0:00:23]} 50... Ke4 {[%clk 0:00:19.4]} 51. Rb4
{[%clk 0:00:22.6]} 51... Kd5 {[%clk 0:00:18.8]} 52. Kd3 {[%clk 0:00:22.5]} 52...
Re7 {[%clk 0:00:18.5]} 53. Rb1 {[%clk 0:00:21.4]} 53... Rde8 {[%clk 0:00:18.5]}
54. Re1 {[%clk 0:00:18.2]} 54... Ra8 {[%clk 0:00:18.9]} 55. Ra1 {[%clk
0:00:17.9]} 55... Re4 {[%clk 0:00:17]} 56. Ra2 {[%clk 0:00:16]} 56... Re7 {[%clk
0:00:16.4]} 57. Ra1 {[%clk 0:00:16.4]} 57... Re4 {[%clk 0:00:16.6]} 58. Re1
{[%clk 0:00:15.9]} 58... Re7 {[%clk 0:00:16.6]} 59. Rf1 {[%clk 0:00:16.2]} 59...
Rae8 {[%clk 0:00:16.6]} 60. Re1 {[%clk 0:00:16.3]} 60... Rg8 {[%clk 0:00:16.8]}
61. Re2 {[%clk 0:00:15.7]} 61... f4 {[%clk 0:00:16.8]} 62. e4+ {[%clk
0:00:15.9]} 62... Ke6 {[%clk 0:00:16.2]} 63. Nxc6 {[%clk 0:00:16.2]} 63... Kd7
{[%clk 0:00:16.4]} 64. Nxe7 {[%clk 0:00:16.1]} 64... Kxe7 {[%clk 0:00:17.3]} 65.
gxf4 {[%clk 0:00:16.5]} 65... g3 {[%clk 0:00:17]} 66. fxg3 {[%clk 0:00:17.1]}
66... Rxg3+ {[%clk 0:00:17.8]} 67. Re3 {[%clk 0:00:17.7]} 67... Rg4 {[%clk
0:00:18.5]} 68. f5 {[%clk 0:00:17.1]} 68... Rxh4 {[%clk 0:00:18.8]} 69. d5
{[%clk 0:00:17.6]} 69... Rh1 {[%clk 0:00:18.5]} 70. d6+ {[%clk 0:00:17.3]} 70...
Kd7 {[%clk 0:00:18.8]} 71. e5 {[%clk 0:00:17.2]} 71... Rd1+ {[%clk 0:00:19.3]}
72. Kc2 {[%clk 0:00:15.9]} 72... Rd5 {[%clk 0:00:18.5]} 73. e6+ {[%clk
0:00:16.4]} 73... Ke8 {[%clk 0:00:18.5]} 74. f6 {[%clk 0:00:16.2]} 74... Rxc5+
{[%clk 0:00:18.5]} 75. Kb3 {[%clk 0:00:16.9]} 1-0

[Event "*** Titled Tuesday Blitz"]
[Site "Chess.com"]
[Date "2020.05.05"]
[Round "1"]
[White "vanea_03"]
[Black "tylityli"]
[Result "0-1"]
[WhiteElo "2628"]
[BlackElo "2336"]
[TimeControl "180+1"]
[EndTime "10:08:36 PDT"]
[Termination "tylityli won by resignation"]

1. d4 {[%clk 0:03:00.4]} 1... Nf6 {[%clk 0:02:50.9]} 2. c4 {[%clk 0:03:00.3]}
2... g6 {[%clk 0:02:44.6]} 3. Nc3 {[%clk 0:02:58.2]} 3... Bg7 {[%clk 0:02:38.8]}
4. e4 {[%clk 0:02:58.2]} 4... d6 {[%clk 0:02:30.5]} 5. h3 {[%clk 0:02:57.5]}
5... Nbd7 {[%clk 0:02:29.9]} 6. Be3 {[%clk 0:02:56.8]} 6... e5 {[%clk
0:02:28.8]} 7. d5 {[%clk 0:02:56.6]} 7... a5 {[%clk 0:02:27.9]} 8. g4 {[%clk
0:02:52.8]} 8... b6 {[%clk 0:02:27.5]} 9. Nf3 {[%clk 0:02:47.5]} 9... h5 {[%clk
0:02:26.9]} 10. g5 {[%clk 0:02:46.3]} 10... Ng8 {[%clk 0:02:22.5]} 11. Qc2
{[%clk 0:02:45.1]} 11... Nc5 {[%clk 0:02:20.4]} 12. O-O-O {[%clk 0:02:41.9]}
12... Ne7 {[%clk 0:02:17]} 13. Nd2 {[%clk 0:02:40.7]} 13... Bd7 {[%clk
0:02:08.5]} 14. f3 {[%clk 0:02:30.9]} 14... O-O {[%clk 0:02:06.8]} 15. h4 {[%clk
0:02:23.7]} 15... Kh7 {[%clk 0:02:04.9]} 16. Nb3 {[%clk 0:02:14.3]} 16... Ng8
{[%clk 0:01:57.5]} 17. Nxc5 {[%clk 0:02:13.2]} 17... bxc5 {[%clk 0:01:56.2]} 18.
Bd3 {[%clk 0:02:05.5]} 18... f5 {[%clk 0:01:40.1]} 19. Kb1 {[%clk 0:01:58.8]}
19... f4 {[%clk 0:01:37.1]} 20. Bd2 {[%clk 0:01:55.1]} 20... Qb8 {[%clk
0:01:36.4]} 21. Ka1 {[%clk 0:01:52.8]} 21... Ne7 {[%clk 0:01:34.9]} 22. Rb1
{[%clk 0:01:45.3]} 22... Nc8 {[%clk 0:01:27.8]} 23. Bf1 {[%clk 0:01:41.5]} 23...
Nb6 {[%clk 0:01:26.4]} 24. Qd3 {[%clk 0:01:41.3]} 24... Qb7 {[%clk 0:01:23.4]}
25. Bh3 {[%clk 0:01:40.1]} 25... Be8 {[%clk 0:01:22.7]} 26. b3 {[%clk
0:01:33.7]} 26... Qa6 {[%clk 0:01:22.3]} 27. Nb5 {[%clk 0:01:25.4]} 27... Rf7
{[%clk 0:01:11.6]} 28. Rhc1 {[%clk 0:01:14.7]} 28... Re7 {[%clk 0:01:10.1]} 29.
Na3 {[%clk 0:01:07.6]} 29... Nd7 {[%clk 0:00:49.8]} 30. Kb2 {[%clk 0:00:55.6]}
30... Nb8 {[%clk 0:00:49.2]} 31. Kc2 {[%clk 0:00:55.3]} 31... Qb6 {[%clk
0:00:47.9]} 32. Kd1 {[%clk 0:00:54.4]} 32... Na6 {[%clk 0:00:44.6]} 33. Ra1
{[%clk 0:00:48.3]} 33... Nb4 {[%clk 0:00:31.6]} 34. Qb1 {[%clk 0:00:48.6]} 34...
c6 {[%clk 0:00:30.9]} 35. Ke1 {[%clk 0:00:47.3]} 35... Rea7 {[%clk 0:00:28.6]}
36. Kf1 {[%clk 0:00:27.8]} 36... a4 {[%clk 0:00:23]} 37. bxa4 {[%clk 0:00:25.6]}
37... Rxa4 {[%clk 0:00:20.8]} 38. Nc2 {[%clk 0:00:26.2]} 38... cxd5 {[%clk
0:00:11.9]} 39. exd5 {[%clk 0:00:23.7]} 39... Qa6 {[%clk 0:00:09]} 40. Nxb4
{[%clk 0:00:18.7]} 40... cxb4 {[%clk 0:00:08.7]} 41. Kg1 {[%clk 0:00:13.8]}
41... Qb6+ {[%clk 0:00:06.7]} 42. Kf1 {[%clk 0:00:10.5]} 42... Ra3 {[%clk
0:00:06.7]} 43. Bg2 {[%clk 0:00:06.6]} 43... b3 {[%clk 0:00:06.6]} 44. c5 {[%clk
0:00:03.3]} 44... dxc5 {[%clk 0:00:05.5]} 45. Qb2 {[%clk 0:00:03.4]} 45... Rxa2
{[%clk 0:00:04.7]} 46. Rxa2 {[%clk 0:00:03.4]} 46... Rxa2 {[%clk 0:00:05.6]} 47.
Qc3 {[%clk 0:00:03.9]} 47... Qb5+ {[%clk 0:00:05.6]} 48. Kg1 {[%clk 0:00:03.9]}
48... e4 {[%clk 0:00:06.1]} 49. Qxc5 {[%clk 0:00:02.2]} 49... Qxc5+ {[%clk
0:00:07]} 50. Rxc5 {[%clk 0:00:02.7]} 50... Rxd2 {[%clk 0:00:07.5]} 51. Rc8
{[%clk 0:00:01.7]} 51... Bd7 {[%clk 0:00:06.5]} 52. Rb8 {[%clk 0:00:02.1]} 52...
exf3 {[%clk 0:00:06.6]} 53. Bxf3 {[%clk 0:00:02.3]} 53... b2 {[%clk 0:00:07.1]}
54. Kf1 {[%clk 0:00:02.6]} 54... Bf5 {[%clk 0:00:07]} 55. Ke1 {[%clk 0:00:02.2]}
55... Rh2 {[%clk 0:00:06.9]} 56. Kf1 {[%clk 0:00:02]} 56... b1=Q+ {[%clk
0:00:07]} 57. Rxb1 {[%clk 0:00:01.6]} 57... Bxb1 {[%clk 0:00:07.9]} 58. d6
{[%clk 0:00:02.5]} 58... Rd2 {[%clk 0:00:08.2]} 59. Bc6 {[%clk 0:00:03.4]} 0-1

[Event "*** Titled Tuesday Blitz"]
[Site "Chess.com"]
[Date "2020.05.05"]
[Round "1"]
[White "Rodalquilar"]
[Black "diskeleven"]
[Result "1/2-1/2"]
[WhiteElo "2637"]
[BlackElo "2332"]
[TimeControl "180+1"]
[EndTime "10:08:44 PDT"]
[Termination "Game drawn by repetition"]

1. e4 {[%clk 0:03:00.1]} 1... c5 {[%clk 0:03:00]} 2. Nc3 {[%clk 0:03:00]} 2...
a6 {[%clk 0:02:59.7]} 3. g3 {[%clk 0:02:59.6]} 3... b5 {[%clk 0:02:59.8]} 4. Bg2
{[%clk 0:03:00.1]} 4... Bb7 {[%clk 0:03:00.2]} 5. d3 {[%clk 0:02:59.7]} 5... e6
{[%clk 0:03:00.5]} 6. Nh3 {[%clk 0:03:00.1]} 6... Nf6 {[%clk 0:02:53.6]} 7. f4
{[%clk 0:02:58.7]} 7... d6 {[%clk 0:02:47.2]} 8. O-O {[%clk 0:02:58]} 8... Be7
{[%clk 0:02:46.7]} 9. f5 {[%clk 0:02:39.8]} 9... e5 {[%clk 0:02:41.4]} 10. g4
{[%clk 0:02:34]} 10... h5 {[%clk 0:02:36.6]} 11. g5 {[%clk 0:02:22.5]} 11... Ng4
{[%clk 0:02:33.8]} 12. Bf3 {[%clk 0:02:13.8]} 12... b4 {[%clk 0:02:32]} 13. Nd5
{[%clk 0:02:06.7]} 13... Bxd5 {[%clk 0:02:31.8]} 14. exd5 {[%clk 0:02:07.6]}
14... c4 {[%clk 0:02:18.2]} 15. Bxg4 {[%clk 0:02:03.4]} 15... hxg4 {[%clk
0:02:17.4]} 16. Qxg4 {[%clk 0:02:04.3]} 16... cxd3 {[%clk 0:02:17.2]} 17. cxd3
{[%clk 0:02:02.6]} 17... Qb6+ {[%clk 0:02:15.7]} 18. Kh1 {[%clk 0:01:52.5]}
18... Qd4 {[%clk 0:02:14.7]} 19. Qxd4 {[%clk 0:01:50.3]} 19... exd4 {[%clk
0:02:14.3]} 20. Nf2 {[%clk 0:01:49.7]} 20... Nd7 {[%clk 0:02:12.5]} 21. Ne4
{[%clk 0:01:49.2]} 21... Rc8 {[%clk 0:02:03.6]} 22. Bf4 {[%clk 0:01:46.9]} 22...
Ne5 {[%clk 0:01:59.1]} 23. Bxe5 {[%clk 0:01:42.6]} 23... dxe5 {[%clk 0:01:59.3]}
24. f6 {[%clk 0:01:24.2]} 24... Rc2 {[%clk 0:01:53.6]} 25. Rf2 {[%clk
0:00:28.4]} 25... Rxf2 {[%clk 0:01:53.4]} 26. Nxf2 {[%clk 0:00:29.3]} 26... gxf6
{[%clk 0:01:53.6]} 27. gxf6 {[%clk 0:00:29.8]} 27... Bxf6 {[%clk 0:01:51.5]} 28.
Ne4 {[%clk 0:00:30.7]} 28... Be7 {[%clk 0:01:51]} 29. Rf1 {[%clk 0:00:16.9]}
29... Rh3 {[%clk 0:01:47.5]} 30. Rf5 {[%clk 0:00:11.7]} 30... f6 {[%clk
0:01:41]} 31. Nxf6+ {[%clk 0:00:11.5]} 31... Bxf6 {[%clk 0:01:39.2]} 32. Rxf6
{[%clk 0:00:12.4]} 32... Rxd3 {[%clk 0:01:39.3]} 33. Re6+ {[%clk 0:00:11.5]}
33... Kd7 {[%clk 0:01:39.3]} 34. Rxe5 {[%clk 0:00:12.4]} 34... Kd6 {[%clk
0:01:30.7]} 35. Rg5 {[%clk 0:00:11.4]} 35... Re3 {[%clk 0:01:19.6]} 36. Kg2
{[%clk 0:00:08.6]} 36... Re2+ {[%clk 0:01:17.8]} 37. Kg3 {[%clk 0:00:07.7]}
37... Rxb2 {[%clk 0:01:16.9]} 38. h4 {[%clk 0:00:08]} 38... d3 {[%clk
0:01:15.4]} 39. Kf3 {[%clk 0:00:08.1]} 39... Rh2 {[%clk 0:01:13.9]} 40. Ke3
{[%clk 0:00:08.2]} 40... d2 {[%clk 0:01:13.8]} 41. Rg1 {[%clk 0:00:08.4]} 41...
Kxd5 {[%clk 0:01:12.1]} 42. Rd1 {[%clk 0:00:09]} 42... Rxh4 {[%clk 0:01:09.7]}
43. Kxd2 {[%clk 0:00:09.4]} 43... Rh2+ {[%clk 0:01:06.7]} 44. Kc1+ {[%clk
0:00:09.8]} 44... Kc4 {[%clk 0:01:06.9]} 45. Kb1 {[%clk 0:00:10.7]} 45... a5
{[%clk 0:01:04.3]} 46. Rc1+ {[%clk 0:00:10.9]} 46... Kb5 {[%clk 0:01:03.3]} 47.
Rg1 {[%clk 0:00:11.8]} 47... Rd2 {[%clk 0:00:59.7]} 48. Rg5+ {[%clk 0:00:11.6]}
48... Ka4 {[%clk 0:00:59]} 49. Rg3 {[%clk 0:00:11.9]} 49... Re2 {[%clk 0:00:57]}
50. Rh3 {[%clk 0:00:12.1]} 50... Re4 {[%clk 0:00:56.1]} 51. Rg3 {[%clk
0:00:12.4]} 51... Kb5 {[%clk 0:00:56.3]} 52. Rg5+ {[%clk 0:00:12.5]} 52... Ka4
{[%clk 0:00:56.5]} 53. Rg3 {[%clk 0:00:12.9]} 53... Rc4 {[%clk 0:00:56.7]} 54.
Rh3 {[%clk 0:00:13.2]} 54... Kb5 {[%clk 0:00:56.5]} 55. Rh5+ {[%clk 0:00:13.1]}
55... Rc5 {[%clk 0:00:56.9]} 56. Rh3 {[%clk 0:00:14]} 56... a4 {[%clk
0:00:57.3]} 57. Rg3 {[%clk 0:00:14.4]} 57... Rd5 {[%clk 0:00:57.1]} 58. Rg1
{[%clk 0:00:12.5]} 58... Kc4 {[%clk 0:00:57.1]} 59. Rg4+ {[%clk 0:00:12.2]}
59... Rd4 {[%clk 0:00:57.3]} 60. Rxd4+ {[%clk 0:00:06.3]} 60... Kxd4 {[%clk
0:00:57.4]} 61. Ka1 {[%clk 0:00:06.7]} 61... Kc3 {[%clk 0:00:55.7]} 62. Kb1
{[%clk 0:00:07.1]} 62... Kd2 {[%clk 0:00:48.5]} 63. Kb2 {[%clk 0:00:05.2]} 63...
Kd3 {[%clk 0:00:46.7]} 64. Kb1 {[%clk 0:00:04.7]} 64... Kc4 {[%clk 0:00:46.5]}
65. Kb2 {[%clk 0:00:04.4]} 65... Kd4 {[%clk 0:00:46.5]} 66. Kb1 {[%clk
0:00:04.6]} 66... Kc3 {[%clk 0:00:46.8]} 67. Kc1 {[%clk 0:00:02.7]} 67... b3
{[%clk 0:00:45]} 68. a3 {[%clk 0:00:03.1]} 68... Kd3 {[%clk 0:00:41.4]} 69. Kb1
{[%clk 0:00:03.4]} 69... Kd2 {[%clk 0:00:41.6]} 70. Kb2 {[%clk 0:00:03.9]} 70...
Kd3 {[%clk 0:00:41.7]} 71. Kb1 {[%clk 0:00:04.4]} 71... Kc4 {[%clk 0:00:42]} 72.
Kc1 {[%clk 0:00:03.9]} 72... Kc3 {[%clk 0:00:41.2]} 73. Kb1 {[%clk 0:00:04.4]}
73... Kd2 {[%clk 0:00:24]} 74. Kb2 {[%clk 0:00:04.7]} 74... Kd3 {[%clk
0:00:24.5]} 75. Kb1 {[%clk 0:00:05.2]} 1/2-1/2

[Event "*** Titled Tuesday Blitz"]
[Site "Chess.com"]
[Date "2020.05.05"]
[Round "1"]
[White "DortmundCity"]
[Black "Volovier"]
[Result "0-1"]
[WhiteElo "2373"]
[BlackElo "2719"]
[TimeControl "180+1"]
[EndTime "10:08:51 PDT"]
[Termination "Volovier won by checkmate"]

1. e4 {[%clk 0:02:59.4]} 1... d5 {[%clk 0:02:58.2]} 2. exd5 {[%clk 0:02:58.3]}
2... Qxd5 {[%clk 0:02:58]} 3. Nc3 {[%clk 0:02:58.2]} 3... Qa5 {[%clk 0:02:58.1]}
4. Bc4 {[%clk 0:02:56.5]} 4... Nf6 {[%clk 0:02:53.9]} 5. Nf3 {[%clk 0:02:55.2]}
5... e6 {[%clk 0:02:53.7]} 6. d4 {[%clk 0:02:53.1]} 6... c5 {[%clk 0:02:52.2]}
7. O-O {[%clk 0:02:50.1]} 7... cxd4 {[%clk 0:02:50.4]} 8. Nxd4 {[%clk
0:02:49.5]} 8... Be7 {[%clk 0:02:49.4]} 9. Nb3 {[%clk 0:02:08.5]} 9... Qd8
{[%clk 0:02:44.6]} 10. Qe2 {[%clk 0:02:00.4]} 10... O-O {[%clk 0:02:42.6]} 11.
Bf4 {[%clk 0:02:00.5]} 11... Nc6 {[%clk 0:02:39.6]} 12. Rfd1 {[%clk 0:01:57.8]}
12... Bd7 {[%clk 0:02:39.3]} 13. Nb5 {[%clk 0:01:40.8]} 13... a6 {[%clk
0:02:36]} 14. Nd6 {[%clk 0:01:36.7]} 14... Bxd6 {[%clk 0:02:32.5]} 15. Bxd6
{[%clk 0:01:31.2]} 15... Re8 {[%clk 0:02:31.5]} 16. Bg3 {[%clk 0:01:30.4]} 16...
Qe7 {[%clk 0:02:26.4]} 17. Bd6 {[%clk 0:01:08]} 17... Qd8 {[%clk 0:02:26]} 18.
Nc5 {[%clk 0:00:47.5]} 18... b5 {[%clk 0:02:22.6]} 19. Bb3 {[%clk 0:00:44.8]}
19... Qc8 {[%clk 0:02:18.3]} 20. Bg3 {[%clk 0:00:41.3]} 20... Na5 {[%clk
0:02:16.2]} 21. Nxd7 {[%clk 0:00:33.1]} 21... Nxd7 {[%clk 0:02:17.1]} 22. c3
{[%clk 0:00:33.8]} 22... Nxb3 {[%clk 0:02:14.8]} 23. axb3 {[%clk 0:00:34.7]}
23... Nc5 {[%clk 0:02:12.7]} 24. b4 {[%clk 0:00:32.4]} 24... Na4 {[%clk
0:02:10.7]} 25. Rd4 {[%clk 0:00:26.6]} 25... Nb6 {[%clk 0:02:08.6]} 26. Rad1
{[%clk 0:00:23]} 26... Nd5 {[%clk 0:02:06.9]} 27. h3 {[%clk 0:00:21.1]} 27...
Qc6 {[%clk 0:02:03.4]} 28. Qd2 {[%clk 0:00:21.2]} 28... a5 {[%clk 0:02:01.2]}
29. bxa5 {[%clk 0:00:17.7]} 29... Rec8 {[%clk 0:01:59.7]} 30. Rg4 {[%clk
0:00:14.5]} 30... Qb7 {[%clk 0:01:45.2]} 31. Be5 {[%clk 0:00:11.9]} 31... f6
{[%clk 0:01:43.7]} 32. Bd4 {[%clk 0:00:12.3]} 32... Rd8 {[%clk 0:01:42.6]} 33.
b4 {[%clk 0:00:10.3]} 33... Qc7 {[%clk 0:01:40.8]} 34. Rg3 {[%clk 0:00:10.3]}
34... Kh8 {[%clk 0:01:38.9]} 35. Qe2 {[%clk 0:00:10.7]} 35... Nf4 {[%clk
0:01:37.5]} 36. Qg4 {[%clk 0:00:09.4]} 36... e5 {[%clk 0:01:35.1]} 37. Bc5
{[%clk 0:00:09.6]} 37... h5 {[%clk 0:01:30.6]} 38. Rxd8+ {[%clk 0:00:04.8]}
38... Rxd8 {[%clk 0:01:31.5]} 39. Qf5 {[%clk 0:00:04.5]} 39... Ne2+ {[%clk
0:01:29.1]} 40. Kh2 {[%clk 0:00:05.1]} 40... Nxg3 {[%clk 0:01:29.1]} 41. fxg3
{[%clk 0:00:06]} 41... Qf7 {[%clk 0:01:24]} 42. a6 {[%clk 0:00:06.4]} 42... Ra8
{[%clk 0:01:21.5]} 43. a7 {[%clk 0:00:05.9]} 43... Kg8 {[%clk 0:01:20.2]} 44.
Qf1 {[%clk 0:00:03.6]} 44... Qb7 {[%clk 0:01:17]} 45. c4 {[%clk 0:00:04]} 45...
Rxa7 {[%clk 0:01:14.8]} 46. Bxa7 {[%clk 0:00:04.2]} 46... Qxa7 {[%clk
0:01:15.4]} 47. cxb5 {[%clk 0:00:05.1]} 47... Qd4 {[%clk 0:01:13.4]} 48. Qb1
{[%clk 0:00:03.2]} 48... e4 {[%clk 0:01:08.8]} 49. Qc2 {[%clk 0:00:03.2]} 49...
Qxb4 {[%clk 0:01:02.5]} 50. Qc8+ {[%clk 0:00:02.4]} 50... Kh7 {[%clk 0:00:57.6]}
51. Qf5+ {[%clk 0:00:02.1]} 51... Kh6 {[%clk 0:00:55.9]} 52. Qf4+ {[%clk
0:00:02.6]} 52... Kg6 {[%clk 0:00:54.1]} 53. g4 {[%clk 0:00:02.2]} 53... Qxb5
{[%clk 0:00:52.1]} 54. Qxe4+ {[%clk 0:00:01.9]} 54... Kf7 {[%clk 0:00:52]} 55.
gxh5 {[%clk 0:00:02.2]} 55... Qxh5 {[%clk 0:00:49.7]} 56. Qf3 {[%clk 0:00:03.1]}
56... Qe5+ {[%clk 0:00:45.6]} 57. Qg3 {[%clk 0:00:04]} 57... Qd4 {[%clk
0:00:42.3]} 58. Qf3 {[%clk 0:00:04.9]} 58... g5 {[%clk 0:00:40.5]} 59. Qg3
{[%clk 0:00:05.8]} 59... Kg6 {[%clk 0:00:38.1]} 60. Qf3 {[%clk 0:00:05.5]} 60...
f5 {[%clk 0:00:35.4]} 61. g3 {[%clk 0:00:05.8]} 61... f4 {[%clk 0:00:33]} 62.
gxf4 {[%clk 0:00:05.6]} 62... gxf4 {[%clk 0:00:33.9]} 63. h4 {[%clk 0:00:05.9]}
63... Kf6 {[%clk 0:00:32.4]} 64. Kh3 {[%clk 0:00:05.4]} 64... Qd7+ {[%clk
0:00:31]} 65. Kg2 {[%clk 0:00:04.5]} 65... Qd4 {[%clk 0:00:29.9]} 66. Kh3 {[%clk
0:00:04]} 66... Qd2 {[%clk 0:00:26.7]} 67. Kg4 {[%clk 0:00:02]} 67... Ke5 {[%clk
0:00:25.1]} 68. Kg5 {[%clk 0:00:02.2]} 68... Qd8+ {[%clk 0:00:23.5]} 69. Kh5
{[%clk 0:00:02.3]} 69... Qc8 {[%clk 0:00:22]} 70. Qe2+ {[%clk 0:00:02.5]} 70...
Kf6 {[%clk 0:00:21.2]} 71. Qf3 {[%clk 0:00:02.3]} 71... Qf5+ {[%clk 0:00:19.2]}
72. Kh6 {[%clk 0:00:02.7]} 72... Qg6# {[%clk 0:00:20.1]} 0-1